fUSD/lending_fUSD_20240119
["ID","MTS","AMOUNT","RATE_DAILY","PERIOD"]
[312201808,1705684344957,-500.0,0.00026575,2]
[312201809,1705684344967,-808.53,0.00026575,2]
[312201810,1705684344976,-544.1,0.00026575,2]
[312201811,1705684344985,-807.4,0.00026575,2]
[312201812,1705684344994,-513.9,0.00026575,2]
[312201813,1705684345003,-1752.26,0.00026575,2]
[312201814,1705684345013,-565.26,0.00026575,2]
[312201815,1705684345024,-445.8363967,0.00026575,2]
[312201816,1705684345033,-500.0,0.00026575,2]
[312201817,1705684345044,-638.62,0.00026575,2]
[312201818,1705684345056,-500.0,0.00026575,2]
[312201819,1705684345065,-702.27,0.00026575,2]
[312201820,1705684345076,-546.25,0.00026575,2]
[312201821,1705684345087,-500.0,0.00026575,2]
[312201822,1705684345097,-500.0,0.00026575,2]
[312201823,1705684345106,-500.0,0.00026575,2]
[312201824,1705684345115,-500.0,0.00026575,2]
[312201825,1705684345124,-1045.91,0.00026575,2]
[312201826,1705684345133,-500.0,0.00026575,2]
[312201827,1705684345145,-615.78,0.00026575,2]
[312201828,1705684345155,-546.84,0.00026575,2]
[312201829,1705684345165,-884.67,0.00026575,2]
[312201830,1705684345174,-679.98,0.00026575,2]
[312201831,1705684345183,-602.03,0.00026575,2]
[312201832,1705684345192,-500.0,0.00026575,2]
[312201833,1705684345201,-1736.83,0.00026575,2]
[312201834,1705684345210,-715.58,0.00026575,2]
[312201835,1705684345219,-500.0,0.00026575,2]
[312201836,1705684345229,-648.18,0.00026575,2]
[312201837,1705684345240,-582.03,0.00026575,2]
[312201838,1705684345250,-500.0,0.00026575,2]
[312201839,1705684345268,-581.09,0.00026575,2]
[312201840,1705684345280,-588.13,0.00026575,2]
[312201841,1705684345290,-800.73,0.00026575,2]
[312201842,1705684345301,-524.92,0.00026575,2]
[312201843,1705684345313,-500.0,0.00026575,2]
[312201844,1705684345322,-729.35,0.00026575,2]
[312201845,1705684345332,-798.17,0.00026575,2]
[312201846,1705684345341,-510.07,0.00026575,2]
[312201847,1705684345351,-594.92,0.00026575,2]
[312201848,1705684345360,-789.92,0.00026575,2]
[312201849,1705684345370,-500.0,0.00026575,2]
[312201850,1705684345379,-500.0,0.00026575,2]
[312201851,1705684345389,-547.54,0.00026575,2]
[312201852,1705684345399,-500.0,0.00026575,2]
[312201853,1705684345408,-836.55,0.00026575,2]
[312201854,1705684345417,-613.85,0.00026575,2]
[312201855,1705684345426,-563.98,0.00026575,2]
[312201856,1705684345435,-500.0,0.00026575,2]
[312201857,1705684345445,-1354.55,0.00026575,2]
[312201858,1705684345455,-661.22,0.00026575,2]
[312201859,1705684345463,-500.0,0.00026575,2]
[312201860,1705684345473,-521.39,0.00026575,2]
[312201861,1705684345482,-649.06,0.00026575,2]
[312201862,1705684345492,-942.15,0.00026575,2]
[312201863,1705684345500,-500.0,0.00026575,2]
[312201864,1705684345510,-665.24,0.00026575,2]
[312201865,1705684345519,-509.47,0.00026575,2]
[312201866,1705684345528,-500.0,0.00026575,2]
[312201867,1705684345537,-567.16,0.00026575,2]
[312201868,1705684345548,-587.72,0.00026575,2]
[312201869,1705684345557,-609.03,0.00026575,2]
[312201870,1705684345566,-673.09,0.00026575,2]
[312201871,1705684345575,-738.2,0.00026575,2]
[312201872,1705684345585,-1257.45,0.00026575,2]
[312201873,1705684345594,-673.79,0.00026575,2]
[312201874,1705684345603,-624.73,0.00026575,2]
[312201875,1705684345612,-518.0,0.00026575,2]
[312201876,1705684345622,-500.0,0.00026575,2]
[312201877,1705684345631,-634.3,0.00026575,2]
[312201878,1705684345640,-500.0,0.00026575,2]
[312201879,1705684345649,-500.0,0.00026575,2]
[312201880,1705684345658,-821.92,0.00026575,2]
[312201881,1705684345667,-290.92260704,0.00026575,2]
[312201882,1705684345676,-673.61,0.00026575,2]
[312201883,1705684345686,-500.0,0.00026575,2]
[312201884,1705684345695,-522.51,0.00026575,2]
[312201885,1705684345705,-543.84,0.00026575,2]
[312201886,1705684345715,-799.17,0.00026575,2]
[312201887,1705684345725,-862.29,0.00026575,2]
[312201888,1705684345735,-539.84,0.00026575,2]
[312201889,1705684345744,-903.19,0.00026575,2]
[312201890,1705684345754,-720.59,0.00026575,2]
[312201891,1705684345764,-790.36,0.00026575,2]
[312201892,1705684345774,-934.67,0.00026575,2]
[312201893,1705684345784,-1287.97,0.00026575,2]
[312201894,1705684345795,-500.0,0.00026575,2]
[312201895,1705684345807,-1004.82,0.00026575,2]
[312201896,1705684345818,-718.68,0.00026575,2]
[312201897,1705684345829,-500.0,0.00026575,2]
[312201898,1705684345840,-2888.65,0.00026575,2]
[312201899,1705684345851,-155.44,0.00026575,2]
[312201900,1705684345861,-767.72,0.00026575,2]
[312201901,1705684345872,-751.55,0.00026575,2]
[312201902,1705684345882,-500.0,0.00026575,2]
[312201903,1705684345892,-553.54,0.00026575,2]
[312201904,1705684345902,-1564.8,0.00026575,2]
[312201905,1705684345912,-2087.23,0.00026575,2]
[312201906,1705684345922,-635.0,0.00026575,2]
[312201907,1705684345932,-779.44,0.00026575,2]
[312201908,1705684345942,-692.16,0.00026575,2]
[312201909,1705684345952,-776.21,0.00026575,2]
[312201910,1705684345962,-801.0,0.00026575,2]
[312201911,1705684345972,-1305.59,0.00026575,2]
[312201912,1705684345982,-540.08,0.00026575,2]
[312201913,1705684345992,-657.66,0.00026575,2]
[312201914,1705684346003,-3922.54,0.00026575,2]
[312201915,1705684346013,-2489.47,0.00026575,2]
[312201916,1705684346024,-1067.45,0.00026575,5]
[312201917,1705684346034,-500.0,0.00026575,2]
[312201918,1705684346045,-574.27,0.00026575,2]
[312201919,1705684346058,-2247.96,0.00026575,2]
[312201920,1705684346068,-4625.17,0.00026575,2]
[312201921,1705684346079,-162.75637999,0.00026575,2]
[312201922,1705684346090,-2955.88,0.00026575,2]
[312201923,1705684346102,-500.0,0.00026575,2]
[312201924,1705684346113,-500.0,0.00026575,2]
[312201925,1705684346124,-792.41,0.00026575,2]
[312201926,1705684346134,-558.04173993,0.00026575,2]
[312201927,1705684346143,-3375.04,0.00026575,2]
[312201928,1705684346154,-1145.18,0.00026575,2]
[312201929,1705684346165,-1482.95,0.00026575,2]
[312201930,1705684346175,-3968.6,0.00026575,2]
[312201931,1705684346186,-642.03,0.00026575,2]
[312201932,1705684346197,-759.02,0.00026575,2]
[312201933,1705684346207,-519.9,0.00026575,2]
[312201934,1705684346217,-1025.72,0.00026575,2]
[312201935,1705684346227,-2480.63,0.00026575,2]
[312201936,1705684346242,-3098.92,0.00026575,2]
[312201937,1705684346253,-733.85,0.00026575,2]
[312201938,1705684346263,-500.0,0.00026575,2]
[312201939,1705684346273,-6021.86,0.00026575,2]
[312201940,1705684346283,-753.94,0.00026575,2]
[312201941,1705684346293,-500.0,0.00026575,2]
[312201942,1705684346307,-978.79,0.00026575,2]
[312201943,1705684346318,-4921.79,0.00026575,2]
[312201944,1705684346328,-8646.25,0.00026575,2]
[312201945,1705684346338,-682.8,0.00026575,2]
[312201946,1705684346348,-1163.38,0.00026575,2]
[312201947,1705684346358,-259.26711118,0.00026575,2]
[312201948,1705684346369,-2479.77,0.00026575,2]
[312201949,1705684346379,-805.35,0.00026575,2]
[312201950,1705684346389,-500.0,0.00026575,2]
[312201951,1705684346399,-1096.89,0.00026575,2]
[312201952,1705684346410,-846.06,0.00026575,2]
[312201953,1705684346420,-522.24,0.00026575,2]
[312201954,1705684346430,-1247.86,0.00026575,2]
[312201955,1705684346441,-1521.64,0.00026575,2]
[312201956,1705684346451,-810.2,0.00026575,2]
[312201957,1705684346461,-1270.75,0.00026575,2]
[312201958,1705684346471,-500.0,0.00026575,2]
[312201959,1705684346482,-648.61,0.00026575,2]
[312201960,1705684346491,-1158.73,0.00026575,2]
[312201961,1705684346502,-1375.2,0.00026575,2]
[312201962,1705684346512,-17751.82,0.00026575,2]
[312201963,1705684346522,-503.19,0.00026575,2]
[312201964,1705684346532,-1097.0,0.00026575,2]
[312201965,1705684346542,-1690.88,0.00026575,2]
[312201966,1705684346554,-1798.17,0.00026575,2]
[312201967,1705684346564,-662.05,0.00026575,2]
[312201968,1705684346574,-1315.74,0.00026575,2]
[312201969,1705684346583,-820.42,0.00026575,2]
[312201970,1705684346593,-2334.22,0.00026575,2]
[312201971,1705684346603,-918.43,0.00026575,2]
[312201972,1705684346613,-1931.87,0.00026575,2]
[312201973,1705684346623,-2683.86,0.00026575,2]
[312201974,1705684346633,-759.51,0.00026575,2]
[312201975,1705684346644,-1614.07,0.00026575,2]
[312201976,1705684346654,-4770.94,0.00026575,2]
[312201977,1705684346663,-1303.95,0.00026575,2]
[312201978,1705684346673,-658.2,0.00026575,2]
[312201979,1705684346683,-500.0,0.00026575,2]
[312201980,1705684346693,-500.0,0.00026575,2]
[312201981,1705684346704,-8690.7,0.00026575,2]
[312201982,1705684346714,-695.99,0.00026575,2]
[312201983,1705684346724,-6873.67,0.00026575,2]
[312201984,1705684346734,-500.0,0.00026575,2]
[312201985,1705684346744,-735.29,0.00026575,2]
[312201986,1705684346754,-519.42,0.00026575,2]
[312201987,1705684346764,-1295.46,0.00026575,2]
[312201988,1705684346774,-1149.53,0.00026575,2]
[312201989,1705684346784,-870.11,0.00026575,2]
[312201990,1705684346794,-500.0,0.00026575,2]
[312201991,1705684346807,-500.0,0.00026575,2]
[312201992,1705684346817,-1617.17,0.00026575,2]
[312201993,1705684346827,-753.21,0.00026575,2]
[312201994,1705684346838,-763.08,0.00026575,2]
[312201995,1705684346848,-982.23,0.00026575,2]
[312201996,1705684346858,-1344.83,0.00026575,2]
[312201997,1705684346869,-512.26,0.00026575,2]
[312201998,1705684346880,-597.5,0.00026575,2]
[312201999,1705684346890,-569.27,0.00026575,2]
[312202000,1705684346900,-742.83,0.00026575,2]
[312202001,1705684346911,-500.0,0.00026575,2]
[312202002,1705684346922,-2112.76,0.00026575,2]
[312202003,1705684346932,-4987.06,0.00026575,2]
[312202004,1705684346943,-1184.32,0.00026575,2]
[312202005,1705684346953,-2960.59,0.00026575,2]
[312202006,1705684346964,-500.0,0.00026575,2]
[312202007,1705684346974,-15338.55,0.00026575,2]
[312202008,1705684346984,-594.36,0.00026575,2]
[312202009,1705684346994,-2166.93,0.00026575,2]
[312202010,1705684347005,-500.0,0.00026575,2]
[312202011,1705684347015,-2307.01,0.00026575,2]
[312202012,1705684347025,-500.0,0.00026575,2]
[312202013,1705684347035,-1238.0,0.00026575,2]
[312202014,1705684347045,-582.28,0.00026575,2]
[312202015,1705684347058,-861.16,0.00026575,2]
[312202016,1705684347069,-970.11,0.00026575,2]
[312202017,1705684347082,-1309.07,0.00026575,2]
[312202018,1705684347095,-1682.88,0.00026575,2]
[312202019,1705684347105,-687.38,0.00026575,2]
[312202020,1705684347115,-500.0,0.00026575,2]
[312202021,1705684347126,-500.0,0.00026575,2]
[312202022,1705684347135,-966.15,0.00026575,2]
[312202023,1705684347145,-1452.73,0.00026575,2]
[312202024,1705684347157,-543.77,0.00026575,2]
[312202025,1705684347166,-687.66,0.00026575,2]
[312202026,1705684347177,-789.87,0.00026575,2]
[312202027,1705684347187,-1600.24,0.00026575,2]
[312202028,1705684347197,-580.5,0.00026575,2]
[312202029,1705684347207,-724.98,0.00026575,2]
[312202030,1705684347217,-566.64,0.00026575,2]
[312202031,1705684347227,-500.0,0.00026575,2]
[312202032,1705684347238,-500.0,0.00026575,2]
[312202033,1705684347248,-2353.38,0.00026575,2]
[312202034,1705684347258,-1472.8,0.00026575,2]
[312202035,1705684347269,-500.0,0.00026575,2]
[312202036,1705684347292,-982.82,0.00026575,2]
[312202037,1705684347328,-1029.65,0.00026575,2]
[312202038,1705684347358,-1034.15,0.00026575,2]
[312202039,1705684347388,-500.0,0.00026575,2]
[312202040,1705684347417,-1105.06,0.00026575,2]
[312202041,1705684347449,-511.82,0.00026575,2]
[312202042,1705684347466,-2707.99,0.00026575,2]
[312202043,1705684347475,-1045.7,0.00026575,2]
[312202044,1705684347485,-1777.84,0.00026575,2]
[312202045,1705684347495,-536.83,0.00026575,2]
[312202046,1705684347504,-10382.29,0.00026575,2]
[312202047,1705684347514,-1339.3,0.00026575,2]
[312202048,1705684347523,-907.28,0.00026575,2]
[312202049,1705684347533,-3979.15,0.00026575,2]
[312202050,1705684347543,-1150.48,0.00026575,2]
[312202051,1705684347555,-1514.36,0.00026575,2]
[312202052,1705684347567,-524.59,0.00026575,2]
[312202053,1705684347577,-778.28,0.00026575,2]
[312202054,1705684347586,-5877.42,0.00026575,2]
[312202055,1705684347596,-848.6,0.00026575,2]
[312202056,1705684347605,-635.87,0.00026575,2]
[312202057,1705684347615,-733.77,0.00026575,2]
[312202058,1705684347625,-2258.64,0.00026575,2]
[312202059,1705684347634,-963.32,0.00026575,2]
[312202060,1705684347644,-500.0,0.00026575,2]
[312202061,1705684347653,-689.61,0.00026575,2]
[312202062,1705684347663,-3018.83,0.00026575,2]
[312202063,1705684347673,-649.04,0.00026575,2]
[312202064,1705684347683,-3735.85,0.00026575,2]
[312202065,1705684347692,-29887.94,0.00026575,2]
[312202066,1705684347702,-658.4,0.00026578,2]
[312202067,1705684347711,-14208.46484219,0.000266,3]
[312202068,1705684347721,-167.0,0.00026703,2]
[312202069,1705684347731,-500.0,0.00026703,2]
[312202070,1705684347740,-158.68816156,0.00026718,2]
[312202071,1705684347749,-1000.0,0.00026738,3]
[312202072,1705684347759,-1000.0,0.00026738,3]
[312202073,1705684347768,-1000.0,0.00026738,3]
[312202074,1705684347778,-1000.0,0.00026738,3]
[312202075,1705684347787,-1000.0,0.00026738,3]
[312202076,1705684347797,-1000.0,0.00026738,3]
[312202077,1705684347808,-1000.0,0.00026738,3]
[312202078,1705684347817,-1000.0,0.00026738,3]
[312202079,1705684347827,-1000.0,0.00026738,3]
[312202080,1705684347836,-1000.0,0.00026738,3]
[312202081,1705684347845,-1000.0,0.00026738,3]
[312202082,1705684347855,-1000.0,0.00026738,3]
[312202083,1705684347864,-1000.0,0.00026738,3]
[312202084,1705684347873,-1000.0,0.00026738,3]
[312202085,1705684347883,-1000.0,0.00026738,3]
[312202086,1705684347892,-1000.0,0.00026738,3]
[312202087,1705684347901,-1000.0,0.00026738,3]
[312202088,1705684347911,-1681.25014532,0.00026738,3]
[312202089,1705684347920,-1000.0,0.00026738,3]
[312202090,1705684347929,-4956.55614894,0.00026738,3]
[312202091,1705684347939,-1000.0,0.00026738,3]
[312202092,1705684347948,-1000.0,0.00026738,3]
[312202093,1705684347957,-1000.0,0.00026738,3]
[312202094,1705684347967,-1000.0,0.00026738,3]
[312202095,1705684347977,-1000.0,0.00026738,3]
[312202096,1705684347987,-1000.0,0.00026738,3]
[312202097,1705684347996,-7229.77093235,0.00026738,3]
[312202098,1705684348006,-12903.7924748,0.00026738,3]
[312202099,1705684348016,-7909.52412578,0.00026738,3]
[312202100,1705684348026,-14767.742831,0.00026738,3]
[312202101,1705684348302,-1000.0,0.00026738,3]
[312202102,1705684348311,-8581.53424254,0.00026738,3]
[312202103,1705684348321,-7490.52654213,0.00026738,3]
[312202104,1705684348330,-151.0,0.00026738,7]
[312202105,1705684348339,-466.441857,0.00026738,7]
[312202106,1705684348348,-466.441857,0.00026738,7]
[312202107,1705684348357,-204.07049,0.00026738,7]
[312202108,1705684348365,-204.07049,0.00026738,7]
[312202109,1705684348375,-150.0,0.00026784,2]
[312202110,1705684348385,-153.76,0.00026784,2]
[312202111,1705684348394,-294.39,0.00026784,2]
[312202112,1705684348403,-344.62,0.00026784,2]
[312202113,1705684348412,-418.5,0.00026784,2]
[312202114,1705684348421,-408.16,0.00026784,2]
[312202115,1705684348430,-1000.0,0.00026802,2]
[312202116,1705684348439,-31261.0315936,0.00026831,2]
[312202117,1705684348448,-853.6276169,0.00026831,2]
[312202118,1705684348457,-554.5359304,0.00026831,2]
[312202119,1705684348466,-8127.7151321,0.00026831,2]
[312202120,1705684348475,-622.14,0.00026849,2]
[312202121,1705684348483,-310.9236691,0.00026849,2]
[312202122,1705684348492,-344.48387272,0.00026849,2]
[312202123,1705684348501,-542.14,0.00026849,2]
[312202124,1705684348510,-500.0,0.00026849,2]
[312202125,1705684348519,-542.59,0.00026849,2]
[312202126,1705684348528,-500.0,0.00026849,2]
[312202127,1705684348537,-730.0,0.00026849,2]
[312202128,1705684348547,-528.39,0.00026849,2]
[312202129,1705684348560,-542.09,0.00026849,2]
[312202130,1705684348569,-500.0,0.00026849,2]
[312202131,1705684348578,-676.04,0.00026849,2]
[312202132,1705684348587,-500.0,0.00026849,2]
[312202133,1705684348595,-808.53,0.00026849,2]
[312202134,1705684348605,-544.1,0.00026849,2]
[312202135,1705684348614,-807.4,0.00026849,2]
[312202136,1705684348623,-513.9,0.00026849,2]
[312202137,1705684348631,-1752.26,0.00026849,2]
[312202138,1705684348641,-565.26,0.00026849,2]
[312202139,1705684348650,-500.0,0.00026849,2]
[312202140,1705684348659,-638.62,0.00026849,2]
[312202141,1705684348668,-500.0,0.00026849,2]
[312202142,1705684348677,-702.27,0.00026849,2]
[312202143,1705684348686,-546.25,0.00026849,2]
[312202144,1705684348695,-500.0,0.00026849,2]
[312202145,1705684348704,-500.0,0.00026849,2]
[312202146,1705684348713,-500.0,0.00026849,2]
[312202147,1705684348722,-500.0,0.00026849,2]
[312202148,1705684348731,-1045.91,0.00026849,2]
[312202149,1705684348741,-500.0,0.00026849,2]
[312202150,1705684348750,-615.78,0.00026849,2]
[312202151,1705684348759,-546.84,0.00026849,2]
[312202152,1705684348768,-884.67,0.00026849,2]
[312202153,1705684348779,-679.98,0.00026849,2]
[312202154,1705684348788,-602.03,0.00026849,2]
[312202155,1705684348798,-500.0,0.00026849,2]
[312202156,1705684348813,-1736.83,0.00026849,2]
[312202157,1705684348822,-715.58,0.00026849,2]
[312202158,1705684348831,-205.68979006,0.00026849,2]
[312202159,1705684348841,-648.18,0.00026849,2]
[312202160,1705684348851,-582.03,0.00026849,2]
[312202161,1705684348861,-500.0,0.00026849,2]
[312202162,1705684348870,-581.09,0.00026849,2]
[312202163,1705684348880,-588.13,0.00026849,2]
[312202164,1705684348889,-800.73,0.00026849,2]
[312202165,1705684348898,-524.92,0.00026849,2]
[312202166,1705684348907,-548.22,0.00026849,2]
[312202167,1705684348916,-729.35,0.00026849,2]
[312202168,1705684348925,-798.17,0.00026849,2]
[312202169,1705684348934,-510.07,0.00026849,2]
[312202170,1705684348943,-594.92,0.00026849,2]
[312202171,1705684348952,-789.92,0.00026849,2]
[312202172,1705684348961,-500.0,0.00026849,2]
[312202173,1705684348971,-500.0,0.00026849,2]
[312202174,1705684348979,-547.54,0.00026849,2]
[312202175,1705684348989,-500.0,0.00026849,2]
[312202176,1705684348998,-836.55,0.00026849,2]
[312202177,1705684349006,-613.85,0.00026849,2]
[312202178,1705684349015,-563.98,0.00026849,2]
[312202179,1705684349024,-164.55207352,0.00026849,2]
[312202180,1705684349033,-1354.55,0.00026849,2]
[312202181,1705684349042,-661.22,0.00026849,2]
[312202182,1705684349054,-500.0,0.00026849,2]
[312202183,1705684349063,-521.39,0.00026849,2]
[312202184,1705684349072,-649.06,0.00026849,2]
[312202185,1705684349084,-942.15,0.00026849,2]
[312202186,1705684349093,-500.0,0.00026849,2]
[312202187,1705684349102,-665.24,0.00026849,2]
[312202188,1705684349111,-509.47,0.00026849,2]
[312202189,1705684349120,-567.16,0.00026849,2]
[312202190,1705684349129,-587.72,0.00026849,2]
[312202191,1705684349138,-609.03,0.00026849,2]
[312202192,1705684349148,-673.09,0.00026849,2]
[312202193,1705684349158,-738.2,0.00026849,2]
[312202194,1705684349168,-1257.45,0.00026849,2]
[312202195,1705684349178,-673.79,0.00026849,2]
[312202196,1705684349189,-624.73,0.00026849,2]
[312202197,1705684349198,-518.0,0.00026849,2]
[312202198,1705684349207,-500.0,0.00026849,2]
[312202199,1705684349216,-634.3,0.00026849,2]
[312202200,1705684349225,-500.0,0.00026849,2]
[312202201,1705684349234,-500.0,0.00026849,2]
[312202202,1705684349245,-821.92,0.00026849,2]
[312202203,1705684349254,-673.61,0.00026849,2]
[312202204,1705684349263,-500.0,0.00026849,2]
[312202205,1705684349272,-522.51,0.00026849,2]
[312202206,1705684349281,-543.84,0.00026849,2]
[312202207,1705684349290,-799.17,0.00026849,2]
[312202208,1705684349301,-862.29,0.00026849,2]
[312202209,1705684349310,-539.84,0.00026849,2]
[312202210,1705684349319,-903.19,0.00026849,2]
[312202211,1705684349329,-720.59,0.00026849,2]
[312202212,1705684349338,-790.36,0.00026849,2]
[312202213,1705684349347,-934.67,0.00026849,2]
[312202214,1705684349356,-1287.97,0.00026849,2]
[312202215,1705684349365,-500.0,0.00026849,2]
[312202216,1705684349374,-1004.82,0.00026849,2]
[312202217,1705684349382,-718.68,0.00026849,2]
[312202218,1705684349391,-500.0,0.00026849,2]
[312202219,1705684349401,-2888.65,0.00026849,2]
[312202220,1705684349409,-155.44,0.00026849,2]
[312202221,1705684349418,-767.72,0.00026849,2]
[312202222,1705684349427,-751.55,0.00026849,2]
[312202223,1705684349436,-500.0,0.00026849,2]
[312202224,1705684349445,-553.54,0.00026849,2]
[312202225,1705684349454,-1564.8,0.00026849,2]
[312202226,1705684349464,-2087.23,0.00026849,2]
[312202227,1705684349473,-635.0,0.00026849,2]
[312202228,1705684349483,-779.44,0.00026849,2]
[312202229,1705684349492,-692.16,0.00026849,2]
[312202230,1705684349501,-776.21,0.00026849,2]
[312202231,1705684349510,-801.0,0.00026849,2]
[312202232,1705684349519,-1305.59,0.00026849,2]
[312202233,1705684349528,-540.08,0.00026849,2]
[312202234,1705684349537,-657.66,0.00026849,2]
[312202235,1705684349546,-3922.54,0.00026849,2]
[312202236,1705684349557,-2489.47,0.00026849,2]
[312202237,1705684349566,-1067.45,0.00026849,5]
[312202238,1705684349575,-500.0,0.00026849,2]
[312202239,1705684349584,-574.27,0.00026849,2]
[312202240,1705684349593,-2247.96,0.00026849,2]
[312202241,1705684349602,-4625.17,0.00026849,2]
[312202242,1705684349611,-2955.88,0.00026849,2]
[312202243,1705684349619,-500.0,0.00026849,2]
[312202244,1705684349628,-500.0,0.00026849,2]
[312202245,1705684349637,-792.41,0.00026849,2]
[312202246,1705684349647,-3375.04,0.00026849,2]
[312202247,1705684349656,-1145.18,0.00026849,2]
[312202248,1705684349665,-1482.95,0.00026849,2]
[312202249,1705684349674,-642.03,0.00026849,2]
[312202250,1705684349685,-3968.6,0.00026849,2]
[312202251,1705684349694,-759.02,0.00026849,2]
[312202252,1705684349703,-519.9,0.00026849,2]
[312202253,1705684349712,-1025.72,0.00026849,2]
[312202254,1705684349722,-2480.63,0.00026849,2]
[312202255,1705684349731,-3098.92,0.00026849,2]
[312202256,1705684349740,-733.85,0.00026849,2]
[312202257,1705684349749,-500.0,0.00026849,2]
[312202258,1705684349758,-6021.86,0.00026849,2]
[312202259,1705684349768,-753.94,0.00026849,2]
[312202260,1705684349777,-500.0,0.00026849,2]
[312202261,1705684349786,-978.79,0.00026849,2]
[312202262,1705684349795,-4921.79,0.00026849,2]
[312202263,1705684349806,-8646.25,0.00026849,2]
[312202264,1705684349815,-682.8,0.00026849,2]
[312202265,1705684349825,-1163.38,0.00026849,2]
[312202266,1705684349834,-2479.77,0.00026849,2]
[312202267,1705684349844,-805.35,0.00026849,2]
[312202268,1705684349853,-500.0,0.00026849,2]
[312202269,1705684349862,-1096.89,0.00026849,2]
[312202270,1705684349871,-846.06,0.00026849,2]
[312202271,1705684349881,-522.24,0.00026849,2]
[312202272,1705684349890,-1247.86,0.00026849,2]
[312202273,1705684349899,-1521.64,0.00026849,2]
[312202274,1705684349909,-810.2,0.00026849,2]
[312202275,1705684349919,-1270.75,0.00026849,2]
[312202276,1705684349928,-299.14842263,0.00026849,2]
[312202277,1705684349937,-648.61,0.00026849,2]
[312202278,1705684349946,-1158.73,0.00026849,2]
[312202279,1705684349956,-1375.2,0.00026849,2]
[312202280,1705684349966,-17751.82,0.00026849,2]
[312202281,1705684349975,-503.19,0.00026849,2]
[312202282,1705684349984,-1097.0,0.00026849,2]
[312202283,1705684349992,-1798.17,0.00026849,2]
[312202284,1705684350002,-1690.88,0.00026849,2]
[312202285,1705684350011,-662.05,0.00026849,2]
[312202286,1705684350020,-1315.74,0.00026849,2]
[312202287,1705684350029,-820.42,0.00026849,2]
[312202288,1705684350038,-2334.22,0.00026849,2]
[312202289,1705684350047,-918.43,0.00026849,2]
[312202290,1705684350063,-1931.87,0.00026849,2]
[312202291,1705684350072,-2683.86,0.00026849,2]
[312202292,1705684350081,-759.51,0.00026849,2]
[312202293,1705684350091,-1614.07,0.00026849,2]
[312202294,1705684350102,-4770.94,0.00026849,2]
[312202295,1705684350111,-1303.95,0.00026849,2]
[312202296,1705684350119,-658.2,0.00026849,2]
[312202297,1705684350128,-500.0,0.00026849,2]
[312202298,1705684350140,-500.0,0.00026849,2]
[312202299,1705684350149,-8690.7,0.00026849,2]
[312202300,1705684350158,-695.99,0.00026849,2]
[312202301,1705684350168,-6873.67,0.00026849,2]
[312202302,1705684350177,-500.0,0.00026849,2]
[312202303,1705684350186,-735.29,0.00026849,2]
[312202304,1705684350195,-519.42,0.00026849,2]
[312202305,1705684350204,-1295.46,0.00026849,2]
[312202306,1705684350213,-1149.53,0.00026849,2]
[312202307,1705684350222,-870.11,0.00026849,2]